fUSD/lending_fUSD_20250302
["ID","MTS","AMOUNT","RATE_DAILY","PERIOD"]
[355060288,1740886234532,-500.0,0.00024657,2]
[355060290,1740886234543,-829.94,0.00024657,2]
[355060292,1740886234552,-700.04,0.00024657,2]
[355060294,1740886234561,-503.15868255,0.00024657,2]
[355060296,1740886234575,-2186.92,0.00024657,2]
[355060298,1740886234584,-935.67,0.00024657,2]
[355060301,1740886234594,-2071.99,0.00024657,2]
[355060303,1740886234618,-1297.72,0.00024657,2]
[355060306,1740886234629,-1265.46,0.00024657,2]
[355060308,1740886234639,-1949.08,0.00024657,2]
[355060310,1740886234650,-500.0,0.00024657,2]
[355060312,1740886234660,-500.0,0.00024657,2]
[355060314,1740886234671,-500.0,0.00024657,2]
[355060316,1740886234682,-500.0,0.00024657,2]
[355060318,1740886234692,-500.0,0.00024657,2]
[355060320,1740886234702,-500.0,0.00024657,2]
[355060322,1740886234712,-500.0,0.00024657,2]
[355060324,1740886234722,-612.49889752,0.00024657,2]
[355060326,1740886234732,-500.0,0.00024657,2]
[355060328,1740886234742,-500.0,0.00024657,2]
[355060330,1740886234752,-921.11,0.00024657,2]
[355060332,1740886234762,-500.0,0.00024657,2]
[355060334,1740886234772,-500.0,0.00024657,2]
[355060336,1740886234783,-500.0,0.00024657,2]
[355060338,1740886234794,-500.0,0.00024657,2]
[355060340,1740886234804,-500.0,0.00024657,2]
[355060342,1740886234814,-892.94,0.00024657,2]
[355060344,1740886234824,-500.0,0.00024657,2]
[355060346,1740886234834,-500.0,0.00024657,2]
[355060348,1740886234843,-500.0,0.00024657,2]
[355060350,1740886234853,-505.318016,0.00024657,2]
[355060352,1740886234863,-504.79953573,0.00024657,2]
[355060354,1740886234874,-219.27482659,0.00024658,7]
[355060356,1740886234884,-1000.0,0.00024658,2]
[355060358,1740886234894,-679.86843189,0.00024685,2]
[355060360,1740886234904,-385.82532148,0.00024696,2]
[355060362,1740886234914,-156.76,0.0002471,2]
[355060364,1740886234924,-249.98,0.00024712,30]
[355060366,1740886234934,-267.2288,0.0002473,2]
[355060368,1740886234944,-1739.4006,0.0002473,2]
[355060370,1740886234954,-3891.2758,0.0002473,2]
[355060372,1740886234964,-279.94852323,0.00024762,2]
[355060374,1740886234974,-196.36,0.00024776,2]
[355060376,1740886234984,-383.2491,0.00024795,10]
[355060378,1740886234994,-726.0115,0.00024802,2]
[355060381,1740886235005,-679.86843189,0.00024822,2]
[355060383,1740886235015,-26783.6402,0.0002483,2]
[355060385,1740886235026,-922.85,0.00024844,2]
[355060387,1740886235035,-156.76,0.00024846,2]
[355060389,1740886235045,-4033.0,0.00024903,2]
[355060391,1740886235055,-1112.0,0.00024903,2]
[355060393,1740886235065,-2027.0,0.00024903,2]
[355060395,1740886235074,-1277.0,0.00024903,2]
[355060397,1740886235084,-179.984,0.00024904,8]
[355060399,1740886235094,-2590.415,0.00024904,8]
[355060401,1740886235109,-666.0,0.00024929,2]
[355060403,1740886235119,-500.0,0.0002493,2]
[355060405,1740886235128,-500.0,0.0002493,2]
[355060407,1740886235138,-500.0,0.0002493,2]
[355060409,1740886235148,-500.0,0.0002493,2]
[355060411,1740886235158,-500.0,0.0002493,2]
[355060414,1740886235169,-647.64,0.0002493,2]
[355060416,1740886235180,-262.49162755,0.0002493,2]
[355060418,1740886235190,-500.0,0.0002493,2]
[355060420,1740886235201,-500.0,0.0002493,2]
[355060422,1740886235212,-534.37,0.0002493,2]
[355060424,1740886235222,-500.0,0.0002493,2]
[355060426,1740886235236,-500.0,0.0002493,2]
[355060428,1740886235246,-500.0,0.0002493,2]
[355060430,1740886235256,-500.0,0.0002493,2]
[355060432,1740886235266,-500.0,0.0002493,2]
[355060434,1740886235278,-500.0,0.0002493,2]
[355060436,1740886235288,-500.0,0.0002493,2]
[355060438,1740886235298,-500.0,0.0002493,2]
[355060440,1740886235309,-500.0,0.0002493,2]
[355060442,1740886235320,-500.0,0.0002493,2]
[355060462,1740886235503,-500.0,0.0002493,2]
[355060464,1740886235513,-500.0,0.0002493,2]
[355060466,1740886235523,-526.88534162,0.0002493,2]
[355060468,1740886235533,-500.0,0.0002493,2]
[355060470,1740886235543,-500.0,0.0002493,2]
[355060472,1740886235553,-500.0,0.0002493,2]
[355060475,1740886235567,-500.0,0.0002493,2]
[355060477,1740886235577,-500.0,0.0002493,2]
[355060478,1740886235587,-500.0,0.0002493,2]
[355060480,1740886235597,-500.0,0.0002493,2]
[355060482,1740886235607,-500.0,0.0002493,2]
[355060484,1740886235616,-500.0,0.0002493,2]
[355060486,1740886235626,-500.0,0.0002493,2]
[355060488,1740886235636,-500.0,0.0002493,2]
[355060490,1740886235646,-793.43,0.0002493,2]
[355060492,1740886235655,-507.0907421,0.0002493,2]
[355060494,1740886235665,-500.0,0.0002493,2]
[355060496,1740886235675,-626.51682929,0.0002493,2]
[355060498,1740886235685,-507.68384982,0.0002493,2]
[355060500,1740886235695,-500.0,0.0002493,2]
[355060502,1740886235705,-500.0,0.0002493,2]
[355060504,1740886235715,-500.0,0.0002493,2]
[355060506,1740886235726,-500.0,0.0002493,2]
[355060508,1740886235735,-500.0,0.0002493,2]
[355060510,1740886235745,-500.0,0.0002493,2]
[355060512,1740886235754,-500.0,0.0002493,2]
[355060514,1740886235764,-500.0,0.0002493,2]
[355060516,1740886235774,-500.0,0.0002493,2]
[355060518,1740886235783,-500.0,0.0002493,2]
[355060520,1740886235793,-500.0,0.0002493,2]
[355060522,1740886235803,-500.0,0.0002493,2]
[355060524,1740886235812,-500.0,0.0002493,2]
[355060526,1740886235822,-500.0,0.0002493,2]
[355060528,1740886235831,-500.0,0.0002493,2]
[355060530,1740886235841,-513.58751701,0.0002493,2]
[355060532,1740886235850,-500.0,0.0002493,2]
[355060534,1740886235860,-759.83,0.0002493,2]
[355060536,1740886235869,-758.88,0.0002493,2]
[355060538,1740886235878,-500.0,0.0002493,2]
[355060540,1740886235888,-500.0,0.0002493,2]
[355060542,1740886235897,-500.0,0.0002493,2]
[355060544,1740886235907,-500.0,0.0002493,2]
[355060546,1740886235916,-500.0,0.0002493,2]
[355060548,1740886235926,-500.0,0.0002493,2]
[355060550,1740886235936,-500.0,0.0002493,2]
[355060552,1740886235946,-511.96,0.0002493,2]
[355060554,1740886235956,-500.0,0.0002493,2]
[355060556,1740886235966,-500.0,0.0002493,2]
[355060558,1740886235975,-500.0,0.0002493,2]
[355060560,1740886235985,-773.0,0.0002493,2]
[355060562,1740886235995,-972.77,0.0002493,2]
[355060564,1740886236005,-500.0,0.0002493,2]
[355060566,1740886236017,-500.0,0.0002493,2]
[355060568,1740886236027,-500.0,0.0002493,2]
[355060570,1740886236037,-930.92,0.0002493,2]
[355060572,1740886236050,-500.0,0.0002493,2]
[355060574,1740886236060,-500.0,0.0002493,2]
[355060576,1740886236070,-500.0,0.0002493,2]
[355060578,1740886236079,-500.0,0.0002493,2]
[355060580,1740886236093,-1323.95,0.0002493,2]
[355060582,1740886236108,-500.0,0.0002493,2]
[355060585,1740886236119,-500.0,0.0002493,2]
[355060587,1740886236129,-585.56,0.0002493,2]
[355060589,1740886236138,-596.03,0.0002493,2]
[355060591,1740886236147,-500.0,0.0002493,2]
[355060592,1740886236157,-500.0,0.0002493,2]
[355060594,1740886236167,-500.0,0.0002493,2]
[355060596,1740886236176,-500.0,0.0002493,2]
[355060598,1740886236186,-676.15,0.0002493,2]
[355060600,1740886236195,-500.0,0.0002493,2]
[355060601,1740886236205,-615.85,0.0002493,2]
[355060602,1740886236214,-500.0,0.0002493,2]
[355060603,1740886236228,-628.7,0.0002493,2]
[355060604,1740886236237,-500.0,0.0002493,2]
[355060605,1740886236247,-1083.56,0.0002493,2]
[355060606,1740886236256,-504.10825098,0.0002493,2]
[355060607,1740886236267,-725.32,0.0002493,2]
[355060608,1740886236276,-500.0,0.0002493,2]
[355060609,1740886236286,-500.0,0.0002493,2]
[355060610,1740886236298,-500.0,0.0002493,2]
[355060611,1740886236308,-500.0,0.0002493,2]
[355060612,1740886236318,-500.0,0.0002493,2]
[355060613,1740886236328,-574.97,0.0002493,2]
[355060614,1740886236337,-500.0,0.0002493,2]
[355060615,1740886236347,-151.795596,0.0002493,7]
[355060616,1740886236357,-500.0,0.0002493,2]
[355060617,1740886236366,-500.0,0.0002493,2]
[355060618,1740886236376,-500.0,0.0002493,2]
[355060619,1740886236386,-151.0,0.0002493,7]
[355060620,1740886236396,-151.0,0.0002493,7]
[355060621,1740886236407,-1484.24,0.0002493,2]
[355060623,1740886236417,-500.0,0.0002493,2]
[355060624,1740886236427,-500.0,0.0002493,2]
[355060626,1740886236436,-151.0,0.0002493,7]
[355060628,1740886236446,-500.0,0.0002493,2]
[355060630,1740886236456,-852.48,0.0002493,2]
[355060632,1740886236465,-151.0,0.0002493,7]
[355060634,1740886236477,-500.0,0.0002493,2]
[355060636,1740886236487,-594.87,0.00024931,2]
[355060638,1740886236496,-500.0,0.00024931,2]
[355060640,1740886236506,-500.0,0.00024931,2]
[355060642,1740886236516,-2118.74,0.00024931,2]
[355060644,1740886236526,-500.0,0.00024931,2]
[355060646,1740886236538,-770.88,0.00024931,2]
[355060648,1740886236548,-528.10065322,0.00024931,2]
[355060650,1740886236558,-689.78,0.00024931,2]
[355060652,1740886236569,-500.0,0.00024931,2]
[355060654,1740886236579,-1773.24,0.00024931,2]
[355060656,1740886236589,-500.0,0.00024931,2]
[355060658,1740886236599,-500.0,0.00024931,2]
[355060660,1740886236608,-829.94,0.00024931,2]
[355060662,1740886236617,-700.04,0.00024931,2]
[355060664,1740886236627,-2186.92,0.00024931,2]
[355060666,1740886236637,-935.67,0.00024931,2]
[355060668,1740886236648,-2071.99,0.00024931,2]
[355060670,1740886236658,-1297.72,0.00024931,2]
[355060672,1740886236667,-1265.46,0.00024931,2]
[355060674,1740886236677,-1949.08,0.00024931,2]
[355060676,1740886236687,-500.0,0.00024931,2]
[355060678,1740886236699,-508.58133145,0.00024931,2]
[355060680,1740886236710,-500.0,0.00024931,2]
[355060682,1740886236719,-505.92255919,0.00024931,2]
[355060684,1740886236728,-500.0,0.00024931,2]
[355060686,1740886236737,-500.0,0.00024931,2]
[355060688,1740886236747,-500.0,0.00024931,2]
[355060690,1740886236756,-500.0,0.00024931,2]
[355060692,1740886236765,-500.0,0.00024931,2]
[355060695,1740886236787,-921.11,0.00024931,2]
[355060697,1740886236798,-500.0,0.00024931,2]
[355060700,1740886236809,-500.0,0.00024931,2]
[355060702,1740886236819,-500.0,0.00024931,2]
[355060704,1740886236830,-500.0,0.00024931,2]
[355060706,1740886236839,-500.0,0.00024931,2]
[355060708,1740886236849,-892.94,0.00024931,2]
[355060710,1740886236859,-500.0,0.00024931,2]
[355060712,1740886236869,-500.0,0.00024931,2]
[355060714,1740886236878,-500.0,0.00024931,2]
[355060716,1740886236888,-679.86843189,0.00024932,2]
[355060718,1740886236897,-1552.93998,0.0002495,2]
[355060720,1740886236907,-18620.79,0.0002498,2]
[355060722,1740886236917,-19183.45,0.0002498,2]
[355060724,1740886236926,-156.76,0.00024982,2]
[355060726,1740886236936,-550.0,0.00025,2]
[355060728,1740886236945,-5000.0,0.00025,4]
[355060730,1740886236955,-1036.03880456,0.00025,10]
[355060732,1740886236966,-189.9,0.00025,2]
[355060734,1740886236976,-1000.0,0.00025004,2]
[355060736,1740886236986,-500.0,0.00025027,7]
[355060738,1740886236998,-500.0,0.00025027,7]
[355060740,1740886237008,-388.86,0.00025027,7]
[355060742,1740886237018,-179.00296342,0.00025104,2]
[355060744,1740886237028,-151.0,0.00025104,7]
[355060746,1740886237038,-151.0,0.00025104,7]
[355060748,1740886237048,-151.0,0.00025104,7]
[355060750,1740886237058,-151.0,0.00025104,7]
[355060752,1740886237068,-152.107635,0.00025104,7]
[355060754,1740886237078,-151.0,0.00025104,7]
[355060756,1740886237088,-151.0,0.00025104,7]
[355060758,1740886237099,-558.960244,0.00025104,7]
[355060760,1740886237109,-558.960244,0.00025104,7]
[355060762,1740886237118,-151.0,0.00025104,7]
[355060764,1740886237128,-500.0,0.00025104,2]
[355060766,1740886237139,-31648.1967,0.00025104,2]
[355060768,1740886237150,-338.9889,0.00025104,2]
[355060770,1740886237160,-156.76,0.00025117,2]
[355060773,1740886237171,-156.93,0.00025173,120]
[355060775,1740886237182,-937.94934965,0.00025176,4]
[355060777,1740886237191,-150.5,0.00025183,120]
[355060779,1740886237201,-385.82532149,0.0002519,2]
[355060781,1740886237211,-150.5,0.00025193,120]
[355060783,1740886237222,-500.0,0.00025195,2]
[355060785,1740886237235,-500.0,0.00025195,2]
[355060787,1740886237245,-500.0,0.00025195,2]
[355060789,1740886237254,-1920.82,0.00025195,2]
[355060791,1740886237264,-500.0,0.00025195,2]
[355060793,1740886237279,-500.0,0.00025195,2]
[355060795,1740886237290,-278.212371,0.00025195,2]
[355060798,1740886237302,-500.0,0.00025195,2]
[355060800,1740886237312,-634.404577,0.00025195,2]
[355060802,1740886237322,-888.71,0.00025195,2]
[355060804,1740886237332,-500.0,0.00025195,2]
[355060806,1740886237342,-500.0,0.00025195,2]
[355060808,1740886237351,-1223.77,0.00025195,2]
[355060810,1740886237361,-687.32,0.00025195,2]
[355060812,1740886237371,-1307.848542,0.00025195,2]
[355060814,1740886237382,-587.99,0.00025195,2]
[355060816,1740886237393,-162.746381,0.00025195,2]
[355060818,1740886237403,-154.096799,0.00025195,2]
[355060820,1740886237413,-784.37,0.00025195,2]
[355060822,1740886237423,-536.68,0.00025195,2]
[355060824,1740886237433,-500.0,0.00025195,2]
[355060826,1740886237444,-909.18,0.00025195,2]
[355060828,1740886237454,-804.26,0.00025195,2]
[355060830,1740886237464,-500.0,0.00025195,2]
[355060832,1740886237474,-500.0,0.00025195,2]
[355060834,1740886237484,-1965.8,0.00025195,2]
[355060836,1740886237494,-1217.64,0.00025195,2]
[355060838,1740886237504,-1549.49,0.00025195,2]
[355060840,1740886237514,-1656.93,0.00025195,2]
[355060843,1740886237525,-500.0,0.00025195,2]
[355060845,1740886237534,-2049.58,0.00025195,2]
[355060847,1740886237544,-151.0,0.00025195,7]
[355060849,1740886237554,-1403.0,0.00025195,2]
[355060851,1740886237564,-599.61,0.00025195,2]
[355060853,1740886237575,-151.0,0.00025195,7]
[355060855,1740886237584,-1415.66,0.00025195,2]
[355060857,1740886237594,-1518.4,0.00025196,2]
[355060859,1740886237604,-1174.52,0.00025196,2]
[355060861,1740886237614,-568.93,0.00025198,2]
[355060863,1740886237624,-576.93866975,0.00025198,2]
[355060865,1740886237634,-500.0,0.00025198,2]
[355060867,1740886237644,-500.0,0.00025198,2]
[355060869,1740886237654,-500.0,0.00025198,2]
[355060871,1740886237664,-500.0,0.00025198,2]
[355060873,1740886237674,-500.0,0.00025198,2]
[355060875,1740886237684,-509.30618524,0.00025198,2]
[355060877,1740886237693,-500.0,0.00025198,2]
[355060879,1740886237705,-500.0,0.00025198,2]
[355060881,1740886237714,-500.0,0.00025198,2]
[355060883,1740886237724,-500.0,0.00025198,2]
[355060885,1740886237734,-500.0,0.00025198,2]
[355060887,1740886237744,-500.0,0.00025198,2]
[355060889,1740886237754,-1119.09,0.00025198,2]
[355060891,1740886237764,-500.0,0.00025198,2]
[355060893,1740886237774,-500.0,0.00025198,2]
[355060896,1740886237788,-500.0,0.00025198,2]
[355060898,1740886237799,-500.0,0.00025198,2]
[355060900,1740886237810,-500.0,0.00025198,2]
[355060902,1740886237820,-500.0,0.00025198,2]
[355060904,1740886237830,-504.11564759,0.00025198,2]
[355060906,1740886237840,-500.0,0.00025198,2]
[355060908,1740886237850,-500.0,0.00025198,2]
[355060910,1740886237860,-1177.24,0.00025198,2]
[355060912,1740886237870,-500.0,0.00025198,2]
[355060914,1740886237880,-500.0,0.00025198,2]
[355060916,1740886237890,-500.0,0.00025198,2]
[355060918,1740886237900,-737.91,0.00025198,2]
[355060920,1740886237910,-500.0,0.00025198,2]
[355060922,1740886237920,-572.57,0.00025198,2]
[355060924,1740886237930,-500.0,0.00025198,2]
[355060926,1740886237939,-500.0,0.00025198,2]
[355060928,1740886237949,-500.0,0.00025198,2]
[355060930,1740886237959,-500.0,0.00025198,2]
[355060932,1740886237969,-151.0,0.00025198,7]
[355060934,1740886237979,-221.45891,0.00025198,7]
[355060936,1740886237988,-672.9386141,0.00025202,2]
[355060938,1740886237998,-500.0,0.00025203,2]
[355060940,1740886238008,-504.25118385,0.00025203,2]
[355060942,1740886238018,-502.03546995,0.00025203,2]
[355060944,1740886238027,-278.54518831,0.00025203,2]
[355060946,1740886238037,-500.0,0.00025203,2]
[355060964,1740886238210,-505.52566063,0.00025203,2]
[355060967,1740886238222,-500.0,0.00025203,2]
[355060969,1740886238235,-502.69574777,0.00025203,2]
[355060971,1740886238244,-500.0,0.00025203,2]
[355060973,1740886238254,-476.19383583,0.00025203,2]
[355060975,1740886238270,-617.10657686,0.00025203,2]
[355060977,1740886238279,-572.4,0.00025203,2]
[355060979,1740886238289,-501.70659646,0.00025203,2]
[355060981,1740886238299,-502.47458386,0.00025203,2]
[355060983,1740886238310,-500.0,0.00025203,2]
[355060985,1740886238319,-649.25,0.00025203,2]
[355060987,1740886238329,-502.6867077,0.00025203,2]
[355060989,1740886238338,-500.0,0.00025203,2]
[355060991,1740886238348,-520.13012752,0.00025203,2]
[355060993,1740886238358,-500.0,0.00025203,2]
[355060995,1740886238368,-501.23030058,0.00025203,2]
[355060997,1740886238378,-500.0,0.00025203,2]
[355060999,1740886238388,-500.0,0.00025203,2]
[355061001,1740886238398,-500.0,0.00025203,2]
[355061003,1740886238407,-512.54,0.00025203,2]
[355061005,1740886238417,-500.0,0.00025203,2]
[355061007,1740886238426,-504.20818369,0.00025203,2]
[355061009,1740886238436,-500.0,0.00025203,2]
[355061011,1740886238445,-500.0,0.00025203,2]
[355061013,1740886238455,-500.0,0.00025203,2]
[355061015,1740886238465,-502.4502902,0.00025203,2]
[355061017,1740886238475,-500.0,0.00025203,2]
[355061019,1740886238485,-506.14624978,0.00025203,2]
[355061021,1740886238495,-501.24960034,0.00025203,2]
[355061023,1740886238505,-502.09310617,0.00025203,2]
[355061025,1740886238515,-500.0,0.00025203,2]
[355061027,1740886238524,-505.92149106,0.00025203,2]
[355061029,1740886238534,-502.15363089,0.00025203,2]
[355061031,1740886238545,-359.22604131,0.00025203,2]
[355061033,1740886238555,-500.0,0.00025203,2]
[355061035,1740886238566,-502.39679243,0.00025203,2]
[355061037,1740886238575,-500.0,0.00025203,2]
[355061039,1740886238585,-502.12283939,0.00025203,2]
[355061041,1740886238595,-500.0,0.00025203,2]
[355061043,1740886238605,-500.0,0.00025203,2]
[355061045,1740886238614,-500.0,0.00025203,2]
[355061047,1740886238624,-500.0,0.00025203,2]
[355061049,1740886238634,-381.67163578,0.00025203,2]
[355061051,1740886238643,-595.70862409,0.00025203,2]
[355061053,1740886238653,-500.0,0.00025203,2]
[355061055,1740886238663,-500.0,0.00025203,2]
[355061057,1740886238672,-500.0,0.00025203,2]
[355061059,1740886238682,-500.0,0.00025203,2]
[355061061,1740886238691,-500.0,0.00025203,2]
[355061063,1740886238701,-428.1791229,0.00025203,2]
[355061065,1740886238710,-411.92028388,0.00025203,2]
[355061066,1740886238719,-500.0,0.00025203,2]
[355061068,1740886238729,-506.33996905,0.00025203,2]
[355061070,1740886238738,-500.0,0.00025203,2]
[355061072,1740886238747,-500.0,0.00025203,2]
[355061074,1740886238757,-503.2750271,0.00025203,2]
[355061077,1740886238778,-500.0,0.00025203,2]
[355061080,1740886238789,-500.0,0.00025203,2]
[355061082,1740886238800,-510.09596013,0.00025203,2]
[355061084,1740886238811,-500.0,0.00025203,2]
[355061085,1740886238820,-500.0,0.00025203,2]
[355061086,1740886238830,-500.0,0.00025203,2]
[355061087,1740886238840,-500.0,0.00025203,2]
[355061088,1740886238850,-500.0,0.00025203,2]
[355061089,1740886238859,-500.0,0.00025203,2]
[355061090,1740886238869,-500.0,0.00025203,2]
[355061091,1740886238879,-500.0,0.00025203,2]
[355061092,1740886238889,-500.0,0.00025203,2]
[355061094,1740886238899,-500.0,0.00025203,2]
[355061096,1740886238909,-500.0,0.00025203,2]
[355061098,1740886238918,-500.0,0.00025203,2]
[355061100,1740886238928,-500.00002167,0.00025203,2]
[355061102,1740886238938,-500.0,0.00025203,2]
[355061104,1740886238948,-502.51139828,0.00025203,2]
[355061106,1740886238958,-500.0,0.00025203,2]
[355061108,1740886238968,-502.05660342,0.00025203,2]
[355061110,1740886238977,-500.0,0.00025203,2]
[355061112,1740886238987,-500.0,0.00025203,2]
[355061114,1740886238997,-500.0,0.00025203,2]
[355061116,1740886239009,-500.0,0.00025203,2]
[355061118,1740886239019,-500.0,0.00025203,2]
[355061121,1740886239029,-1302.52,0.00025203,2]
[355061123,1740886239039,-501.73576746,0.00025203,2]
[355061125,1740886239050,-500.0,0.00025203,2]
[355061127,1740886239060,-500.0,0.00025203,2]
[355061129,1740886239070,-503.14198948,0.00025203,2]
[355061131,1740886239080,-1313.5,0.00025203,2]
[355061133,1740886239090,-500.0,0.00025203,2]
[355061135,1740886239100,-1610.22,0.00025203,2]
[355061137,1740886239110,-500.0,0.00025203,2]
[355061139,1740886239119,-500.0,0.00025203,2]
[355061141,1740886239129,-501.11205179,0.00025203,2]
[355061143,1740886239140,-500.0,0.00025203,2]
[355061145,1740886239150,-500.0,0.00025203,2]
[355061147,1740886239159,-502.70365108,0.00025203,2]
[355061149,1740886239169,-500.0,0.00025203,2]
[355061151,1740886239179,-500.0,0.00025203,2]
[355061154,1740886239190,-500.0,0.00025203,2]
[355061156,1740886239200,-500.0,0.00025203,2]
[355061158,1740886239210,-500.0,0.00025203,2]
[355061160,1740886239221,-500.0,0.00025203,2]
[355061162,1740886239234,-500.0,0.00025203,2]
[355061164,1740886239244,-500.0,0.00025203,2]
[355061166,1740886239253,-502.69,0.00025203,2]
[355061168,1740886239263,-500.0,0.00025203,2]
[355061170,1740886239274,-510.13623144,0.00025203,2]
[355061172,1740886239283,-503.13269231,0.00025203,2]
[355061174,1740886239293,-500.0,0.00025203,2]
[355061176,1740886239306,-500.0,0.00025203,2]
[355061178,1740886239318,-500.0,0.00025203,2]
[355061180,1740886239328,-500.0,0.00025203,2]
[355061182,1740886239338,-504.96455527,0.00025203,2]
[355061184,1740886239348,-502.3723181,0.00025203,2]
[355061186,1740886239358,-500.0,0.00025203,2]
[355061188,1740886239368,-500.0,0.00025203,2]
[355061190,1740886239378,-501.88643634,0.00025203,2]
[355061193,1740886239388,-500.0,0.00025203,2]
[355061195,1740886239399,-500.0,0.00025203,2]
[355061197,1740886239409,-500.0,0.00025203,2]
[355061199,1740886239419,-500.0,0.00025203,2]
[355061201,1740886239429,-511.39599869,0.00025203,2]
[355061203,1740886239439,-500.0,0.00025203,2]
[355061205,1740886239450,-500.0,0.00025203,2]
[355061207,1740886239459,-500.0,0.00025203,2]
[355061209,1740886239469,-517.97,0.00025203,2]
[355061211,1740886239479,-500.0,0.00025203,2]
[355061213,1740886239489,-500.0,0.00025203,2]
[355061215,1740886239498,-500.0,0.00025203,2]
[355061217,1740886239508,-500.0,0.00025203,2]
[355061219,1740886239518,-500.0,0.00025203,2]
[355061221,1740886239528,-500.0,0.00025203,2]
[355061223,1740886239537,-503.32213958,0.00025203,2]
[355061225,1740886239549,-500.0,0.00025203,2]
[355061227,1740886239559,-502.34760501,0.00025203,2]
[355061229,1740886239569,-610.3059909,0.00025203,2]
[355061232,1740886239579,-500.0,0.00025203,2]
[355061234,1740886239590,-500.0,0.00025203,2]
[355061236,1740886239599,-500.0,0.00025203,2]
[355061238,1740886239609,-500.0,0.00025203,2]
[355061240,1740886239619,-500.0,0.00025203,2]
[355061242,1740886239629,-500.0,0.00025203,2]
[355061244,1740886239639,-500.0,0.00025203,2]
[355061246,1740886239648,-151.0,0.00025203,7]
[355061248,1740886239658,-500.0,0.00025203,2]
[355061250,1740886239668,-500.0,0.00025203,90]
[355061252,1740886239677,-500.0,0.00025203,2]
[355061254,1740886239687,-509.87277187,0.00025203,2]
[355061256,1740886239696,-505.89478109,0.00025203,2]
[355061258,1740886239706,-508.87734174,0.00025203,2]
[355061260,1740886239716,-504.59311408,0.00025203,2]
[355061262,1740886239725,-500.0,0.00025203,2]
[355061264,1740886239735,-500.0,0.00025203,2]
[355061266,1740886239745,-500.0,0.00025203,2]
[355061268,1740886239754,-1512.09,0.00025203,2]
[355061270,1740886239764,-506.15984223,0.00025203,2]
[355061272,1740886239773,-505.61245229,0.00025203,2]
[355061275,1740886239784,-511.32947396,0.00025203,2]
[355061277,1740886239794,-508.08712445,0.00025203,2]
[355061279,1740886239804,-505.50235768,0.00025203,2]
[355061281,1740886239813,-151.0,0.00025203,7]
[355061283,1740886239823,-500.0,0.00025203,2]
[355061285,1740886239832,-504.51263613,0.00025203,2]
[355061287,1740886239841,-500.0,0.00025203,2]
[355061289,1740886239850,-756.86,0.00025203,2]
[355061291,1740886239861,-500.0,0.00025203,2]
[355061293,1740886239871,-528.67613936,0.00025203,2]
[355061295,1740886239881,-500.0,0.00025203,2]
[355061297,1740886239891,-702.12,0.00025203,2]
[355061299,1740886239901,-513.04218676,0.00025203,2]
[355061301,1740886239911,-563.08,0.00025203,2]
[355061303,1740886239921,-511.11191548,0.00025203,2]
[355061305,1740886239931,-154.135979,0.00025203,7]
[355061307,1740886239940,-505.28159169,0.00025203,2]